bitfinex-derivatives/quotes_BNBF0:USTF0_20250510
["timestamp","ask_amount","ask_price","bid_price","bid_amount"]
[1746849187786,0.24820765,662.67,661.57,0.92379094]
[1746849188084,0.24820765,662.67,661.54,0.34]
[1746849188379,0.24820765,662.67,661.55,0.92367566]
[1746849188580,0.24820765,662.67,661.56,0.92367566]
[1746849188780,0.24820765,662.67,661.57,0.92367566]
[1746849188989,0.24820765,662.67,661.54,0.34]
[1746849189291,0.24820765,662.67,661.55,0.9236215]
[1746849189587,0.24820765,662.67,661.56,0.9236215]
[1746849189787,0.24820765,662.67,661.57,0.9236215]
[1746849190087,0.24820765,662.67,661.58,0.9236215]
[1746849190387,0.24820765,662.67,661.59,0.9236215]
[1746849190587,0.24820765,662.67,661.6,0.9236215]
[1746849190788,0.24820765,662.67,661.61,0.9236215]
[1746849191087,0.24820765,662.67,661.62,0.9236215]
[1746849191289,0.26279621,662.66,661.63,0.9236215]
[1746849191481,0.26279621,662.66,661.64,0.9236215]
[1746849191686,0.26279621,662.66,661.54,0.34]
[1746849191886,0.24820765,662.65,661.55,0.92305833]
[1746849192085,0.24820765,662.65,661.56,0.92305833]
[1746849192286,0.24820765,662.65,661.57,0.92305833]
[1746849192482,0.24820765,662.65,661.58,0.92305833]
[1746849192791,0.24820765,662.65,661.59,0.92305833]
[1746849192989,0.24820765,662.65,661.6,0.92305833]
[1746849193190,0.24820765,662.65,661.61,0.92305833]
[1746849193484,0.24820765,662.65,661.56,0.269]
[1746849193690,0.24820765,662.65,661.57,0.9229617]
[1746849193888,0.24820765,662.65,661.58,0.9229617]
[1746849194092,0.24820765,662.65,661.56,0.269]
[1746849194289,0.24820765,662.65,661.57,0.92294827]
[1746849194590,0.24820765,662.65,661.58,0.92294827]
[1746849194789,0.24820765,662.65,661.59,0.92294827]
[1746849194990,0.24820765,662.65,661.56,0.269]
[1746849195190,0.24820765,662.65,661.57,0.92293952]
[1746849195391,0.24820765,662.65,661.58,0.92293952]
[1746849195592,0.24820765,662.65,661.59,0.92293952]
[1746849195792,0.24820765,662.65,661.56,0.269]
[1746849195993,0.24820765,662.65,661.57,0.9228685]
[1746849196293,0.24820765,662.65,661.56,0.269]
[1746849200196,0.26284484,662.64,661.56,0.269]
[1746849200796,0.24820765,662.63,661.56,0.269]
[1746849202696,0.24820765,662.62,661.56,0.269]
[1746849203097,0.24820765,662.61,661.56,0.269]
[1746849203295,0.24820765,662.6,661.56,0.269]
[1746849203696,0.24820765,662.59,661.56,0.269]
[1746849203992,0.24820765,662.58,661.56,0.269]
[1746849204296,0.24820765,662.57,661.56,0.269]
[1746849204804,0.24820765,662.56,661.56,0.269]
[1746849205203,0.24820765,662.55,661.56,0.269]
[1746849205704,0.24820765,662.54,661.56,0.269]
[1746849206100,0.24820765,662.53,661.56,0.269]
[1746849206302,0.24820765,662.52,661.56,0.269]
[1746849206700,0.24820765,662.51,661.56,0.269]
[1746849207104,0.24820765,662.5,661.56,0.269]
[1746849207607,0.24820765,662.49,661.56,0.269]
[1746849208000,0.24820765,662.48,661.56,0.269]
[1746849208208,0.24820765,662.47,661.56,0.269]
[1746849208408,0.24820765,662.46,661.56,0.269]
[1746849208603,0.24820765,662.52,661.56,0.269]
[1746849209203,0.2628647,662.51,661.56,0.269]
[1746849210408,0.51107235,662.51,661.56,0.269]
[1746849210808,0.24820765,662.5,661.56,0.269]
[1746849212110,0.26288058,662.49,661.56,0.269]
[1746849212711,0.24820765,662.48,661.56,0.269]
[1746849214412,0.24820765,662.48,661.56,0.598]
[1746849215113,0.26284981,662.47,661.56,0.598]
[1746849215614,0.24820765,662.46,661.56,0.598]
[1746849218115,0.26285675,662.45,661.56,0.598]
[1746849218509,0.24820765,662.44,661.56,0.598]
[1746849218913,0.24820765,662.43,661.56,0.598]
[1746849219114,0.24820765,662.42,661.56,0.598]
[1746849219414,0.24820765,662.41,661.56,0.598]
[1746849219714,0.24820765,662.4,661.56,0.598]
[1746849220014,0.24820765,662.44,661.56,0.598]
[1746849220415,0.24820765,662.43,661.56,0.598]
[1746849221010,0.24820765,662.42,661.56,0.598]
[1746849221213,0.51109518,662.42,661.56,0.598]
[1746849221414,0.24820765,662.41,661.56,0.598]
[1746849221714,0.24820765,662.4,661.56,0.598]
[1746849222109,0.24820765,662.39,661.56,0.598]
[1746849222312,0.24820765,662.38,661.56,0.598]
[1746849222609,0.24820765,662.37,661.56,0.598]
[1746849223015,0.24820765,662.36,661.56,0.598]
[1746849223211,0.24820765,662.41,661.56,0.598]
[1746849223516,0.24820765,662.4,661.56,0.598]
[1746849224213,0.51109121,662.39,661.56,0.598]
[1746849224412,0.26288356,662.39,661.56,0.598]
[1746849224816,0.24718057,662.38,661.56,0.598]
[1746849225116,0.24718057,662.37,661.56,0.598]
[1746849225616,0.24718057,662.38,661.56,0.598]
[1746849227317,0.26288952,662.37,661.56,0.598]
[1746849227819,0.24718057,662.36,661.56,0.598]
[1746849228015,0.24718057,662.36,661.58,0.30230659]
[1746849230022,0.24718057,662.36,661.59,0.396]
[1746849230218,0.26293719,662.35,661.59,0.396]
[1746849230521,0.26293719,662.35,661.6,0.30229746]
[1746849230821,0.24718057,662.34,661.6,0.30229746]
[1746849231923,0.24718057,662.34,661.61,0.412]
[1746849232124,0.24718057,662.34,661.62,0.30228832]
[1746849232325,0.26293719,662.35,661.62,0.30228832]
[1746849232619,0.2472434,662.34,661.62,0.30228832]
[1746849233224,0.26286668,662.33,661.62,0.30228832]
[1746849234024,0.24724358,662.32,661.62,0.30228832]
[1746849236424,1.89476654,663.82,661.62,0.30228832]
[1746849236425,0.2628786,662.31,661.62,0.30228832]
[1746849236823,0.24724358,662.3,661.62,0.30228832]
[1746849239223,0.2628915,662.29,661.62,0.30228832]
[1746849239424,0.24724358,662.28,661.62,0.30228832]
[1746849240928,0.2628915,662.29,661.62,0.30228832]
[1746849241229,0.24740399,662.28,661.62,0.30228832]
[1746849245230,0.26290143,662.27,661.62,0.30228832]
[1746849245731,0.24740399,662.26,661.62,0.30228832]
[1746849246231,0.26290143,662.27,661.62,0.30228832]
[1746849246731,0.24724352,662.26,661.62,0.30228832]
[1746849248133,0.51015091,662.25,661.62,0.30228832]
[1746849248432,0.24724352,662.24,661.62,0.30228832]
[1746849249233,0.26290739,662.25,661.62,0.30228832]
[1746849249730,0.24704404,662.24,661.62,0.30228832]
[1746849250134,0.24704404,662.23,661.62,0.30228832]
[1746849250535,0.24704404,662.22,661.62,0.30228832]
[1746849250836,0.24704404,662.21,661.62,0.30228832]
[1746849251134,0.50998918,662.21,661.62,0.30228832]
[1746849251328,0.24704404,662.2,661.62,0.30228832]
[1746849252636,0.24704404,662.19,661.62,0.30228832]
[1746849252932,0.24704404,662.18,661.62,0.30228832]
[1746849253337,0.24704404,662.17,661.62,0.30228832]
[1746849253638,0.24704404,662.16,661.62,0.30228832]
[1746849254036,0.24704404,662.15,661.62,0.30228832]
[1746849254337,0.24704404,662.2,661.62,0.30228832]
[1746849254733,0.24704404,662.19,661.62,0.30228832]
[1746849255135,0.24704404,662.2,661.62,0.30228832]
[1746849255835,0.24704404,662.19,661.62,0.30228832]
[1746849256139,0.24704404,662.2,661.62,0.30228832]
[1746849256340,0.24704404,662.19,661.62,0.30228832]
[1746849256740,0.24704404,662.2,661.62,0.30228832]
[1746849257239,0.26299283,662.18,661.62,0.30228832]
[1746849258142,0.24685591,662.17,661.62,0.30228832]
[1746849260245,0.26305247,662.16,661.62,0.30228832]
[1746849261046,0.24685591,662.15,661.62,0.30228832]
[1746849261344,0.24685591,662.14,661.62,0.30228832]
[1746849261640,0.24685591,662.13,661.62,0.30228832]
[1746849262044,0.24685591,662.12,661.62,0.30228832]
[1746849262545,0.24685591,662.11,661.62,0.30228832]
[1746849262740,0.24685591,662.1,661.62,0.30228832]
[1746849263143,0.24685591,662.09,661.62,0.30228832]
[1746849263344,0.24685591,662.08,661.62,0.30228832]
[1746849263748,0.24685591,662.07,661.62,0.30228832]
[1746849264149,0.24685591,662.06,661.62,0.30228832]
[1746849264451,0.24685591,662.05,661.62,0.30228832]
[1746849264750,0.24685591,662.04,661.62,0.30228832]
[1746849265048,0.24685591,662.03,661.62,0.30228832]
[1746849265553,0.24685591,662.02,661.62,0.30228832]
[1746849265848,0.24685591,662.01,661.62,0.30228832]
[1746849266152,0.24685591,662.0,661.62,0.30228832]
[1746849266453,0.50993522,662.0,661.62,0.30228832]
[1746849266748,0.24685591,661.99,661.62,0.30228832]
[1746849267148,0.24685591,661.98,661.62,0.30228832]
[1746849267453,0.24685591,661.99,661.62,0.30228832]
[1746849267748,0.24685591,661.98,661.62,0.30228832]
[1746849268156,0.24685591,661.99,661.62,0.30228832]
[1746849268448,0.24685591,661.98,661.62,0.30228832]
[1746849268748,0.24685591,661.99,661.62,0.30228832]
[1746849269250,0.26307832,661.98,661.62,0.30228832]
[1746849269453,0.24685591,661.97,661.62,0.30228832]
[1746849272455,0.24685591,662.57,661.62,0.30228832]
[1746849272754,0.24685591,662.56,661.62,0.30228832]
[1746849273154,0.26303954,662.55,661.62,0.30228832]
[1746849273353,0.50989545,662.55,661.62,0.30228832]
[1746849273654,0.24685591,662.54,661.62,0.30228832]
[1746849274157,0.24685591,662.53,661.62,0.30228832]
[1746849274356,0.26303954,662.55,661.62,0.30228832]
[1746849274856,0.24702957,662.54,661.62,0.30228832]
[1746849275254,0.51000252,662.53,661.62,0.30228832]
[1746849275659,0.24702957,662.52,661.62,0.30228832]
[1746849275957,0.24702957,662.51,661.62,0.30228832]
[1746849276159,0.24702957,662.5,661.62,0.30228832]
[1746849276556,0.24702957,662.49,661.62,0.30228832]
[1746849277259,0.24702957,662.48,661.62,0.30228832]
[1746849277659,0.24702957,662.47,661.62,0.30228832]
[1746849278055,0.24702957,662.46,661.62,0.30228832]
[1746849278362,0.24702957,662.45,661.62,0.30228832]
[1746849278662,0.24702957,662.44,661.62,0.30228832]
[1746849279163,0.24702957,662.43,661.62,0.30228832]
[1746849279566,0.24702957,662.42,661.62,0.30228832]
[1746849279966,0.24702957,662.41,661.62,0.30228832]
[1746849280866,0.24702957,662.4,661.62,0.30228832]
[1746849281162,0.24702957,662.39,661.62,0.30228832]
[1746849281366,0.51006215,662.39,661.62,0.30228832]
[1746849281567,0.24702957,662.38,661.62,0.30228832]
[1746849281863,0.24702957,662.37,661.62,0.30228832]
[1746849282469,0.24702957,662.36,661.62,0.30228832]
[1746849282962,0.24702957,662.35,661.62,0.30228832]
[1746849283565,0.24702957,662.34,661.62,0.30228832]
[1746849283869,0.24702957,662.33,661.62,0.30228832]
[1746849284269,0.2630634,662.32,661.62,0.30228832]
[1746849284570,0.51009297,662.32,661.62,0.30228832]
[1746849285068,0.24702957,662.31,661.62,0.30228832]
[1746849285268,0.2630634,662.32,661.62,0.30228832]
[1746849285769,0.2470929,662.31,661.62,0.06608516]
[1746849285964,0.2470929,662.3,661.62,0.06608516]
[1746849286270,1.89476654,661.95,661.62,0.06608516]
[1746849286968,0.2470929,661.94,661.62,0.06608516]
[1746849287271,0.51033639,661.94,661.62,0.06608516]
[1746849287772,0.2470929,661.93,661.62,0.06608516]
[1746849287973,0.26324349,661.94,661.62,0.06608516]
[1746849288474,0.24709172,661.93,661.62,0.06608516]
[1746849289369,2.15801003,661.94,661.62,0.06608516]
[1746849289773,0.24712786,661.93,661.62,0.06608516]
[1746849290273,0.26319073,661.92,661.62,0.06608516]
[1746849291571,0.24712786,661.91,661.62,0.06608516]
[1746849291973,0.24712786,661.9,661.62,0.06608516]
[1746849292274,0.24712786,661.89,661.62,0.06608516]
[1746849292675,0.24712786,661.88,661.62,0.06608516]
[1746849293075,0.24712786,661.87,661.62,0.06608516]
[1746849293375,0.51021016,661.87,661.62,0.06608516]
[1746849293576,0.24712786,661.86,661.62,0.06608516]
[1746849293775,0.24712786,661.85,661.62,0.06608516]
[1746849294077,0.24712786,661.84,661.62,0.06608516]
[1746849294377,0.24712786,661.83,661.62,0.06608516]
[1746849294878,0.2630823,661.87,661.62,0.06608516]
[1746849294879,0.24712786,661.82,661.62,0.06608516]
[1746849295077,0.24712786,661.81,661.62,0.06608516]
[1746849295576,0.24712786,661.8,661.62,0.06608516]
[1746849295773,0.24712786,661.8,661.62,0.01471059]
[1746849295973,0.24712786,661.79,661.62,0.01471059]
[1746849296373,0.24712786,661.78,661.62,0.01471059]
[1746849296679,0.24712786,661.77,661.62,0.01471059]
[1746849297173,0.24712786,661.76,661.62,0.01471059]
[1746849297478,0.24712786,661.75,661.62,0.01471059]
[1746849297778,0.24712786,661.74,661.62,0.01471059]
[1746849299380,0.26314496,661.73,661.62,0.01471059]
[1746849299980,0.24712786,661.72,661.62,0.01471059]
[1746849302378,0.26311114,661.71,661.62,0.01471059]
[1746849302981,0.24712786,661.7,661.62,0.01471059]
[1746849303783,0.24712786,661.7,661.62,0.00039989]
[1746849305885,0.24712786,661.7,661.41,0.3023843]
[1746849311291,0.26313601,661.69,661.41,0.3023843]
[1746849311693,0.24707695,661.68,661.42,0.335]
[1746849311890,0.24707695,661.68,661.43,0.30237515]
[1746849314291,0.26310915,661.67,661.43,0.30237515]
[1746849314693,0.24707695,661.66,661.43,0.30237515]
[1746849317496,0.24707695,662.05,661.43,0.30237515]
[1746849317791,0.24707695,662.04,661.43,0.30237515]
[1746849318198,0.24707695,662.03,661.43,0.30237515]
[1746849318393,0.51017217,662.03,661.43,0.30237515]
[1746849318599,0.24707695,662.02,661.43,0.30237515]
[1746849318899,0.24707695,662.01,661.43,0.30237515]
[1746849319099,0.24707695,662.0,661.43,0.30237515]
[1746849319694,0.24707695,661.99,661.43,0.30237515]
[1746849319997,0.24707695,661.98,661.43,0.30237515]
[1746849320497,0.24707695,661.97,661.43,0.30237515]
[1746849320898,0.24707695,661.96,661.43,0.30237515]
[1746849321102,0.5101672,661.96,661.43,0.30237515]
[1746849321399,0.24707695,661.95,661.43,0.30237515]
[1746849323199,0.24707695,662.1,661.43,0.30237515]
[1746849323403,0.26309821,661.94,661.43,0.30237515]
[1746849323704,0.24707695,662.09,661.43,0.30237515]
[1746849323903,0.24707695,662.1,661.43,0.30237515]
[1746849324306,0.24707695,662.09,661.43,0.30237515]
[1746849324600,0.24707695,662.08,661.43,0.30237515]
[1746849324804,0.51017516,662.08,661.43,0.30237515]
[1746849325005,0.24707695,662.07,661.43,0.30237515]
[1746849325305,0.24707695,662.06,661.43,0.30237515]
[1746849325606,0.24707695,662.05,661.43,0.30237515]
[1746849326005,0.24707695,662.04,661.43,0.30237515]
[1746849326302,0.24707695,662.03,661.43,0.30237515]
[1746849326607,0.24707695,662.02,661.43,0.30237515]
[1746849327008,0.24707695,662.07,661.43,0.30237515]
[1746849327206,0.24707695,662.06,661.43,0.30237515]
[1746849327510,0.24707695,662.05,661.43,0.30237515]
[1746849327910,0.24707695,662.04,661.43,0.30237515]
[1746849328311,0.24707695,662.03,661.43,0.30237515]
[1746849328506,2.14184349,662.03,661.43,0.30237515]
[1746849328711,0.24707695,662.02,661.43,0.30237515]
[1746849329106,0.24707695,662.01,661.43,0.30237515]
[1746849329408,0.24707695,662.0,661.43,0.30237515]
[1746849329710,0.24707695,661.99,661.43,0.30237515]
[1746849330110,0.24707695,661.98,661.43,0.30237515]
[1746849330407,0.24707695,661.97,661.43,0.30237515]
[1746849330610,1.89476654,661.94,661.43,0.30237515]
[1746849331211,0.24707695,661.93,661.43,0.30237515]
[1746849331811,1.89476654,661.94,661.43,0.30237515]
[1746849332113,0.2471279,661.93,661.43,0.30237515]
[1746849332311,0.51032759,661.93,661.43,0.30237515]
[1746849332511,0.2471279,661.92,661.43,0.30237515]
[1746849332807,1.89476654,661.9,661.43,0.30237515]
[1746849333012,1.89476654,661.9,661.43,0.06753122]
[1746849333211,1.89476654,661.9,661.43,0.42853122]
[1746849333512,0.2471279,661.89,661.43,0.42853122]
[1746849335113,1.89476654,661.62,661.43,0.42853122]
[1746849335614,0.24715273,661.61,661.43,0.42853122]
[1746849337316,0.24715273,661.86,661.43,0.42853122]
[1746849338312,0.26312904,661.85,661.43,0.42853122]
[1746849338717,0.24715273,661.84,661.43,0.42853122]
[1746849344219,0.26306639,661.83,661.43,0.42853122]
[1746849344419,0.24715273,661.82,661.43,0.42853122]
[1746849350720,0.24715273,661.87,661.43,0.42853122]
[1746849353324,0.24715273,662.28,661.43,0.42853122]
[1746849353622,0.24715273,662.27,661.43,0.42853122]
[1746849354225,0.51014655,662.26,661.43,0.42853122]
[1746849354623,0.24715273,662.25,661.43,0.42853122]
[1746849356127,0.26298488,662.24,661.43,0.42853122]
[1746849356327,0.24715273,662.23,661.43,0.42853122]
[1746849359430,0.26294712,662.22,661.43,0.42853122]
[1746849359929,0.24715273,662.21,661.43,0.42853122]
[1746849361829,0.24715273,662.2,661.43,0.42853122]
[1746849362125,0.24715273,662.19,661.43,0.42853122]
[1746849362428,0.24715273,663.07,661.43,0.42853122]
[1746849362731,0.24715273,663.06,661.43,0.42853122]
[1746849363131,0.24715273,663.05,661.43,0.42853122]
[1746849363529,0.24715273,663.04,661.43,0.42853122]
[1746849363732,1.89476654,662.71,661.43,0.42853122]
[1746849364434,0.24715273,662.7,661.43,0.42853122]
[1746849364834,0.24715273,662.69,661.43,0.42853122]
[1746849365132,0.24715273,662.68,661.43,0.42853122]
[1746849365532,0.24715273,662.67,661.43,0.42853122]
[1746849365832,0.24715273,662.66,661.43,0.42853122]
[1746849366332,0.24715273,662.65,661.43,0.42853122]
[1746849366633,0.24715273,662.64,661.43,0.42853122]
[1746849367030,0.24715273,662.63,661.43,0.42853122]
[1746849367233,0.24715273,662.62,661.43,0.42853122]
[1746849367533,0.24715273,662.61,661.43,0.42853122]
[1746849368233,0.24715273,662.6,661.43,0.42853122]
[1746849368633,0.24715273,662.59,661.43,0.42853122]
[1746849368934,0.24715273,662.58,661.43,0.42853122]
[1746849369235,1.89476654,662.5,661.43,0.42853122]
[1746849369834,0.24715273,662.49,661.43,0.42853122]
[1746849370235,0.24715273,662.48,661.43,0.42853122]
[1746849370735,0.24715273,662.47,661.43,0.42853122]
[1746849371035,0.24715273,662.46,661.43,0.42853122]
[1746849371738,0.24715273,662.45,661.43,0.42853122]
[1746849372035,1.89476654,662.26,661.43,0.42853122]
[1746849372334,0.24715273,662.25,661.43,0.42853122]
[1746849372732,0.24715273,662.24,661.43,0.42853122]
[1746849373334,0.24715273,662.23,661.43,0.42853122]
[1746849373633,1.89476654,662.26,661.43,0.42853122]
[1746849373634,0.24715273,662.22,661.43,0.42853122]
[1746849374034,0.24715273,662.21,661.43,0.42853122]
[1746849374438,0.24715273,662.2,661.43,0.42853122]
[1746849374736,1.89476654,662.26,661.43,0.42853122]
[1746849375031,0.24770263,662.25,661.43,0.42853122]
[1746849375434,0.24770263,662.24,661.43,0.42853122]
[1746849375835,0.24770263,662.23,661.43,0.42853122]
[1746849376336,0.24770263,662.22,661.43,0.42853122]
[1746849376632,0.24770263,662.21,661.43,0.42853122]
[1746849377136,0.24770263,662.2,661.43,0.42853122]
[1746849377433,0.24770263,662.19,661.43,0.42853122]
[1746849377735,0.24770263,662.18,661.43,0.42853122]
[1746849378242,0.24770263,662.17,661.43,0.42853122]
[1746849378637,0.24770263,662.16,661.43,0.42853122]
[1746849378938,0.24770263,662.15,661.43,0.42853122]
[1746849379438,0.24770263,662.14,661.43,0.42853122]
[1746849379838,0.24770263,662.13,661.43,0.42853122]
[1746849380141,0.24770263,662.12,661.43,0.42853122]
[1746849380742,0.24770263,662.11,661.43,0.42853122]
[1746849381038,0.24770263,662.1,661.43,0.42853122]
[1746849381244,0.24770263,662.09,661.43,0.42853122]
[1746849381743,0.24770263,662.08,661.43,0.42853122]
[1746849382143,0.24770263,662.07,661.43,0.42853122]
[1746849382543,0.24770263,662.06,661.43,0.42853122]
[1746849383038,0.24770263,662.05,661.43,0.42853122]
[1746849383444,0.24770263,662.04,661.43,0.42853122]
[1746849383644,0.24770263,662.04,661.43,0.83153122]
[1746849383942,0.24770263,662.08,661.43,0.83153122]
[1746849384143,0.24770263,662.03,661.43,0.83153122]
[1746849385042,0.24770263,662.08,661.43,0.83153122]
[1746849385844,0.24770263,662.1,661.43,0.83153122]
[1746849386241,0.24770263,662.23,661.43,0.83153122]
[1746849386440,0.26302463,662.09,661.43,0.83153122]
[1746849386740,0.24770263,662.23,661.43,0.83153122]
[1746849386940,0.24770263,662.08,661.43,0.83153122]
[1746849387344,0.26302463,662.07,661.43,0.83153122]
[1746849388040,0.24770263,662.06,661.43,0.83153122]
[1746849389245,0.24770263,662.94,661.43,0.83153122]
[1746849389439,0.24770263,662.05,661.43,0.83153122]
[1746849389642,0.51065671,662.05,661.43,0.83153122]
[1746849389844,0.24770263,662.94,661.43,0.83153122]
[1746849390043,0.24770263,662.93,661.43,0.83153122]
[1746849390343,0.24770263,662.92,661.43,0.83153122]
[1746849390741,0.24770263,662.91,661.43,0.83153122]
[1746849391140,0.26295408,662.93,661.43,0.83153122]
[1746849391446,0.24755421,662.92,661.43,0.83153122]
[1746849391646,0.24755421,662.91,661.43,0.83153122]
[1746849392047,0.24755421,662.9,661.43,0.83153122]
[1746849392246,0.24755421,662.89,661.43,0.83153122]
[1746849392446,0.24755421,662.88,661.43,0.83153122]
[1746849392741,0.24755421,662.87,661.43,0.83153122]
[1746849392947,0.24755421,662.86,661.43,0.83153122]
[1746849393247,0.24755421,662.85,661.43,0.83153122]
[1746849393542,0.24755421,662.84,661.43,0.83153122]
[1746849393742,0.24755421,662.83,661.43,0.83153122]
[1746849393941,0.24755421,662.82,661.43,0.83153122]
[1746849394241,0.24755421,662.81,661.43,0.83153122]
[1746849394547,0.24755421,662.8,661.43,0.83153122]
[1746849394748,0.24755421,662.79,661.43,0.83153122]
[1746849395146,0.24755421,662.78,661.43,0.83153122]
[1746849395347,0.24755421,662.77,661.43,0.83153122]
[1746849395547,0.24755421,662.76,661.43,0.83153122]
[1746849395744,0.24755421,662.75,661.43,0.83153122]
[1746849396049,0.24755421,662.74,661.43,0.83153122]
[1746849396244,0.24755421,662.73,661.43,0.83153122]
[1746849396445,1.89476654,662.09,661.43,0.83153122]
[1746849396649,0.24755421,662.08,661.43,0.83153122]
[1746849396947,0.24755421,662.07,661.43,0.83153122]
[1746849397149,0.24755421,662.06,661.43,0.83153122]
[1746849397349,0.24755421,662.05,661.43,0.83153122]
[1746849397649,0.24755421,662.04,661.43,0.83153122]
[1746849397852,0.24755421,662.03,661.43,0.83153122]
[1746849398051,1.89476654,662.09,661.43,0.83153122]
[1746849398352,0.24752724,662.08,661.43,0.83153122]
[1746849398553,1.89476654,662.06,661.43,0.83153122]
[1746849398847,0.24752724,662.05,661.43,0.83153122]
[1746849399354,0.2630465,662.04,661.43,0.83153122]
[1746849399555,0.24752724,662.03,661.43,0.83153122]
[1746849401657,0.2630465,662.04,661.43,0.83153122]
[1746849401858,0.24752504,662.03,661.43,0.83153122]
[1746849404161,0.24752504,662.48,661.43,0.83153122]
[1746849404362,0.26300376,662.02,661.43,0.83153122]
[1746849404561,0.24752504,662.47,661.43,0.83153122]
[1746849404759,0.24752504,662.01,661.43,0.83153122]
[1746849404960,0.24752504,662.46,661.43,0.83153122]
[1746849405261,1.89476654,662.48,661.43,0.83153122]
[1746849405262,0.26300475,662.0,661.43,0.83153122]
[1746849405563,0.24752504,661.99,661.43,0.83153122]
[1746849405859,0.26300475,661.99,661.43,0.83153122]
[1746849406063,0.24752504,661.98,661.43,0.83153122]
[1746849406759,0.26300475,661.99,661.43,0.83153122]
[1746849406963,1.89476654,662.48,661.43,0.83153122]
[1746849407259,0.26300475,661.98,661.43,0.83153122]
[1746849407463,0.51036113,661.98,661.43,0.83153122]
[1746849407664,0.24735638,661.98,661.43,0.83153122]
[1746849407964,0.24735638,661.97,661.43,0.83153122]
[1746849408266,0.51036113,661.97,661.43,0.83153122]
[1746849408766,0.24735638,661.96,661.43,0.83153122]
[1746849409861,0.24735638,661.95,661.43,0.83153122]
[1746849410267,0.26300277,661.94,661.43,0.42853122]
[1746849410462,0.51035915,661.94,661.43,0.42853122]
[1746849410668,0.24735638,661.93,661.43,0.42853122]
[1746849413266,0.24735638,662.01,661.43,0.42853122]
[1746849413570,0.2631987,661.92,661.43,0.42853122]
[1746849413767,0.24735638,662.01,661.43,0.87953122]
[1746849413968,0.24735638,661.91,661.43,0.87953122]
[1746849414572,0.24735638,662.0,661.43,0.87953122]
[1746849414975,0.26305446,661.9,661.43,0.87953122]
[1746849415273,0.24735638,662.1,661.43,0.87953122]
[1746849415470,0.24735638,661.89,661.43,0.87953122]
[1746849415775,0.24735638,662.1,661.43,0.87953122]
[1746849417375,0.26310716,662.09,661.43,0.87953122]
[1746849417577,0.51046354,662.09,661.43,0.87953122]
[1746849417775,0.51046354,662.09,661.43,0.451]
[1746849417980,0.51046354,662.09,661.44,0.30237058]
[1746849418278,0.24735638,662.08,661.44,0.30237058]
[1746849418779,0.24735638,662.07,661.44,0.30237058]
[1746849419179,0.24735638,662.06,661.44,0.30237058]
[1746849419377,0.26327237,662.06,661.44,0.30237058]
[1746849419581,1.89476654,661.88,661.44,0.30237058]
[1746849419881,0.24717908,661.87,661.44,0.30237058]
[1746849422078,0.24717908,662.05,661.44,0.30237058]
[1746849422281,0.24717908,662.04,661.44,0.30237058]
[1746849422578,0.24717908,662.05,661.44,0.30237058]
[1746849422982,0.24717908,662.04,661.44,0.30237058]
[1746849423383,0.24717908,662.03,661.44,0.30237058]
[1746849423683,0.24717908,662.05,661.44,0.30237058]
[1746849424482,0.24717908,662.04,661.44,0.30237058]
[1746849424887,0.24717908,662.05,661.44,0.30237058]
[1746849425386,0.26315789,662.04,661.44,0.30237058]
[1746849425586,0.51033697,662.04,661.44,0.30237058]
[1746849425884,0.26315789,662.04,661.44,0.30237058]
[1746849426089,0.24734479,662.03,661.44,0.30237058]
[1746849426387,0.24734479,662.02,661.44,0.30237058]
[1746849427387,0.24734479,662.01,661.44,0.30237058]
[1746849427982,0.24734479,662.0,661.44,0.30237058]
[1746849428487,0.5104798,661.99,661.44,0.30237058]
[1746849428790,0.24734479,661.98,661.44,0.30237058]
[1746849431190,0.24734479,661.97,661.44,0.30237058]
[1746849432090,0.24734479,661.96,661.44,0.30237058]
[1746849432387,0.5104798,661.96,661.44,0.30237058]
[1746849432585,0.24734479,661.95,661.44,0.30237058]
[1746849434290,0.24734479,662.17,661.44,0.30237058]
[1746849434489,0.26311512,661.94,661.44,0.30237058]
[1746849434790,0.24734479,662.17,661.44,0.30237058]
[1746849435390,0.26310716,662.16,661.44,0.30237058]
[1746849435786,0.24734479,662.15,661.44,0.30237058]
[1746849437890,0.24734479,662.61,661.44,0.30237058]
[1746849438185,0.24734479,662.6,661.44,0.30237058]
[1746849438691,0.24734479,662.59,661.44,0.30237058]
[1746849438986,1.89476654,663.32,661.44,0.30237058]
[1746849438987,1.89476654,662.53,661.44,0.30237058]
[1746849439391,0.24734479,662.52,661.44,0.30237058]
[1746849439589,0.24734479,662.51,661.44,0.30237058]
[1746849439792,0.24734479,662.5,661.44,0.30237058]
[1746849440093,0.24734479,662.49,661.44,0.30237058]
[1746849440287,0.24734479,662.48,661.44,0.30237058]
[1746849440489,0.24734479,662.47,661.44,0.30237058]
[1746849440692,0.24734479,662.46,661.44,0.30237058]
[1746849440992,0.24734479,662.45,661.44,0.30237058]
[1746849441186,0.24734479,662.44,661.44,0.30237058]
[1746849441487,0.24734479,662.43,661.44,0.30237058]
[1746849442791,0.24734479,662.42,661.44,0.30237058]
[1746849443290,0.24734479,662.41,661.44,0.30237058]
[1746849443591,0.24734479,662.4,661.44,0.30237058]